fUST/lending_fUST_20250725
["ID","MTS","AMOUNT","RATE_DAILY","PERIOD"]
[374672865,1753407053185,-1861.89,0.00018334,2]
[374672866,1753407053195,-460.0,0.00018334,2]
[374672867,1753407053205,-460.0,0.00018334,2]
[374672868,1753407053214,-460.0,0.00018334,2]
[374672869,1753407053224,-460.0,0.00018334,2]
[374672870,1753407053234,-531.04,0.00018334,2]
[374672871,1753407053244,-460.0,0.00018334,2]
[374672872,1753407053254,-1379.8,0.00018334,2]
[374672873,1753407053263,-460.0,0.00018334,2]
[374672874,1753407053273,-484.59,0.00018334,2]
[374672875,1753407053282,-460.0,0.00018334,2]
[374672876,1753407053292,-502.37,0.00018334,2]
[374672877,1753407053302,-460.0,0.00018334,2]
[374672878,1753407053311,-3711.29,0.00018334,2]
[374672879,1753407053321,-497.41,0.00018334,2]
[374672880,1753407053331,-460.0,0.00018334,2]
[374672881,1753407053342,-999.31,0.00018334,2]
[374672882,1753407053352,-704.93,0.00018334,2]
[374672883,1753407053362,-1122.05,0.00018334,2]
[374672884,1753407053373,-460.0,0.00018334,2]
[374672885,1753407053383,-460.0,0.00018335,2]
[374672886,1753407053393,-460.0,0.00018335,2]
[374672887,1753407053405,-462.77754344,0.00018335,2]
[374672888,1753407053414,-460.0,0.00018335,2]
[374672889,1753407053427,-460.0,0.00018335,2]
[374672890,1753407053438,-460.0,0.00018335,2]
[374672891,1753407053448,-460.0,0.00018335,2]
[374672892,1753407053458,-460.0,0.00018335,2]
[374672893,1753407053469,-460.0,0.00018335,2]
[374672894,1753407053478,-460.0,0.00018335,2]
[374672895,1753407053488,-460.0,0.00018335,2]
[374672896,1753407053499,-460.0,0.00018335,2]
[374672897,1753407053509,-460.0,0.00018335,2]
[374672898,1753407053521,-460.0,0.00018335,2]
[374672899,1753407053537,-460.0,0.00018335,2]
[374672900,1753407053547,-460.0,0.00018335,2]
[374672901,1753407053558,-460.0,0.00018335,2]
[374672902,1753407053568,-460.0,0.00018335,2]
[374672903,1753407053579,-460.0,0.00018335,2]
[374672904,1753407053589,-460.0,0.00018335,2]
[374672905,1753407053599,-460.0,0.00018335,2]
[374672906,1753407053608,-460.0,0.00018335,2]
[374672907,1753407053618,-727.25,0.00018335,2]
[374672908,1753407053627,-460.0,0.00018335,2]
[374672909,1753407053636,-541.65,0.00018335,2]
[374672910,1753407053645,-570.81,0.00018335,2]
[374672911,1753407053655,-460.0,0.00018335,2]
[374672912,1753407053665,-1298.5,0.00018335,2]
[374672913,1753407053675,-460.0,0.00018335,2]
[374672914,1753407053686,-460.0,0.00018335,2]
[374672915,1753407053697,-460.0,0.00018335,2]
[374672916,1753407053707,-460.0,0.00018335,2]
[374672917,1753407053716,-820.54,0.00018335,2]
[374672918,1753407053725,-460.0,0.00018335,2]
[374672919,1753407053736,-1807.12,0.00018335,2]
[374672920,1753407053745,-633.27,0.00018335,2]
[374672921,1753407053754,-2084.93,0.00018335,2]
[374672922,1753407053764,-585.06,0.00018335,2]
[374672923,1753407053773,-663.73,0.00018335,2]
[374672924,1753407053783,-1394.51,0.00018335,2]
[374672925,1753407053792,-848.06,0.00018335,2]
[374672926,1753407053801,-460.0,0.00018335,2]
[374672927,1753407053811,-3413.77,0.00018335,2]
[374672928,1753407053821,-676.03,0.00018335,2]
[374672929,1753407053830,-2083.27,0.00018335,2]
[374672930,1753407053840,-1153.82,0.00018335,2]
[374672931,1753407053851,-460.0,0.00018389,2]
[374672932,1753407053861,-460.0,0.00018389,2]
[374672933,1753407053870,-460.0,0.00018389,2]
[374672934,1753407053880,-460.0,0.00018389,2]
[374672935,1753407053890,-460.0,0.00018389,2]
[374672936,1753407053899,-460.0,0.00018389,2]
[374672937,1753407053909,-460.0,0.00018389,2]
[374672938,1753407053919,-460.0,0.00018389,2]
[374672939,1753407053928,-460.0,0.00018389,2]
[374672940,1753407053938,-460.0,0.00018389,2]
[374672941,1753407053947,-460.0,0.00018389,2]
[374672942,1753407053957,-460.0,0.00018389,2]
[374672943,1753407053967,-581.87,0.00018389,2]
[374672944,1753407053977,-532.78,0.00018389,2]
[374672945,1753407053986,-565.54,0.00018389,2]
[374672946,1753407053995,-460.0,0.00018389,2]
[374672947,1753407054005,-460.0,0.00018389,2]
[374672948,1753407054015,-460.0,0.00018389,2]
[374672949,1753407054025,-460.0,0.00018389,2]
[374672950,1753407054034,-652.74,0.00018389,2]
[374672951,1753407054045,-460.0,0.00018389,2]
[374672952,1753407054054,-460.0,0.00018389,2]
[374672953,1753407054064,-460.0,0.00018389,2]
[374672954,1753407054074,-460.0,0.00018389,2]
[374672955,1753407054118,-460.0,0.00018389,2]
[374672956,1753407054128,-533.82,0.00018389,2]
[374672957,1753407054140,-742.53,0.00018389,2]
[374672958,1753407054150,-460.0,0.00018389,2]
[374672959,1753407054161,-460.0,0.00018389,2]
[374672960,1753407054172,-460.0,0.00018389,2]
[374672961,1753407054182,-460.0,0.00018389,2]
[374672962,1753407054197,-2316.34,0.00018389,2]
[374672963,1753407054217,-460.0,0.00018389,2]
[374672964,1753407054226,-460.0,0.00018389,2]
[374672965,1753407054237,-460.0,0.00018389,2]
[374672966,1753407054247,-460.0,0.00018389,2]
[374672967,1753407054257,-1451.46,0.00018389,2]
[374672968,1753407054268,-460.0,0.00018389,2]
[374672969,1753407054278,-658.65,0.00018389,2]
[374672970,1753407054288,-460.0,0.00018389,2]
[374672971,1753407054299,-603.54,0.00018389,2]
[374672972,1753407054308,-460.0,0.00018389,2]
[374672973,1753407054318,-460.0,0.00018389,2]
[374672974,1753407054327,-460.0,0.00018393,2]
[374672975,1753407054337,-460.0,0.00018393,2]
[374672976,1753407054347,-460.0,0.00018393,2]
[374672977,1753407054357,-460.0,0.00018393,2]
[374672978,1753407054366,-460.0,0.00018393,2]
[374672979,1753407054376,-987.73,0.00018393,2]
[374672980,1753407054386,-460.0,0.00018393,2]
[374672981,1753407054395,-460.0,0.00018393,2]
[374672982,1753407054405,-460.0,0.00018393,2]
[374672983,1753407054414,-460.0,0.00018393,2]
[374672984,1753407054427,-460.0,0.00018393,2]
[374672985,1753407054437,-460.0,0.00018393,2]
[374672986,1753407054446,-460.0,0.00018393,2]
[374672987,1753407054455,-460.0,0.00018393,2]
[374672988,1753407054465,-460.0,0.00018393,2]
[374672989,1753407054475,-820.59,0.00018393,2]
[374672990,1753407054485,-460.0,0.00018393,2]
[374672991,1753407054494,-460.0,0.00018393,2]
[374672992,1753407054505,-460.0,0.00018393,2]
[374672993,1753407054515,-460.0,0.00018393,2]
[374672994,1753407054525,-460.0,0.00018393,2]
[374672995,1753407054534,-460.0,0.00018393,2]
[374672996,1753407054544,-460.0,0.00018393,2]
[374672997,1753407054553,-460.0,0.00018393,2]
[374672998,1753407054563,-460.0,0.00018393,2]
[374672999,1753407054573,-460.0,0.00018393,2]
[374673000,1753407054582,-460.0,0.00018393,2]
[374673001,1753407054594,-460.0,0.00018393,2]
[374673002,1753407054608,-303.11856516,0.00018393,2]
[374673003,1753407054618,-460.0,0.00018393,2]
[374673004,1753407054627,-460.0,0.00018393,2]
[374673005,1753407054636,-460.0,0.00018393,2]
[374673006,1753407054647,-460.0,0.00018393,2]
[374673007,1753407054657,-460.0,0.00018393,2]
[374673008,1753407054666,-460.0,0.00018393,2]
[374673009,1753407054675,-460.0,0.00018393,2]
[374673010,1753407054685,-460.0,0.00018393,2]
[374673011,1753407054695,-460.0,0.00018393,2]
[374673012,1753407054705,-460.0,0.00018393,2]
[374673013,1753407054714,-465.10313433,0.00018393,2]
[374673014,1753407054724,-227.70399947,0.00018421,2]
[374673015,1753407054733,-500.0,0.00018421,2]
[374673016,1753407054742,-500.0,0.00018421,2]
[374673017,1753407054752,-1002.28091123,0.00018421,2]
[374673018,1753407054761,-542.55430628,0.00018421,2]
[374673019,1753407054771,-1000.0,0.00018421,2]
[374673020,1753407054780,-500.0,0.00018421,2]
[374673021,1753407054790,-500.0,0.00018421,2]
[374673022,1753407054799,-1000.0,0.00018421,2]
[374673023,1753407054808,-1000.0,0.00018421,2]
[374673024,1753407054818,-1000.0,0.00018421,2]
[374673025,1753407054827,-934.74863387,0.00018515,2]
[374673026,1753407054838,-460.0,0.00018536,2]
[374673027,1753407054847,-460.0,0.00018536,2]
[374673028,1753407054856,-460.0,0.00018536,2]
[374673029,1753407054865,-460.0,0.00018536,2]
[374673030,1753407054875,-205.23222555,0.00018536,2]
[374673031,1753407054884,-460.0,0.00018536,2]
[374673032,1753407054894,-460.0,0.00018536,2]
[374673033,1753407054904,-460.0,0.00018538,2]
[374673034,1753407054913,-460.0,0.00018538,2]
[374673035,1753407054923,-460.0,0.00018538,2]
[374673036,1753407054932,-460.0,0.00018538,2]
[374673037,1753407054942,-460.0,0.00018538,2]
[374673038,1753407054951,-460.0,0.00018538,2]
[374673039,1753407054960,-500.0,0.00018538,2]
[374673040,1753407054969,-460.0,0.00018538,2]
[374673041,1753407054980,-460.0,0.00018538,2]
[374673042,1753407054992,-460.0,0.00018538,2]
[374673043,1753407055002,-500.4,0.00018538,2]
[374673044,1753407055012,-460.0,0.00018538,2]
[374673045,1753407055021,-591.19,0.00018538,2]
[374673046,1753407055032,-359.13871907,0.00018538,2]
[374673047,1753407055042,-460.0,0.00018538,2]
[374673048,1753407055051,-460.0,0.00018538,2]
[374673049,1753407055060,-460.0,0.00018538,2]
[374673050,1753407055070,-460.0,0.00018538,2]
[374673051,1753407055079,-460.0,0.00018538,2]
[374673052,1753407055089,-460.0,0.00018538,2]
[374673053,1753407055099,-460.0,0.00018605,2]
[374673054,1753407055109,-460.0,0.00018605,2]
[374673055,1753407055118,-460.0,0.00018605,2]
[374673056,1753407055127,-460.0,0.00018605,2]
[374673057,1753407055137,-460.0,0.00018605,2]
[374673058,1753407055146,-1258.25,0.00018605,2]
[374673059,1753407055155,-460.0,0.00018605,2]
[374673060,1753407055165,-460.0,0.00018605,2]
[374673061,1753407055174,-467.18549892,0.00018605,2]
[374673062,1753407055183,-460.0,0.00018608,2]
[374673063,1753407055193,-553.65545854,0.00018608,2]
[374673064,1753407055202,-460.0,0.00018608,2]
[374673065,1753407055212,-460.0,0.00018608,2]
[374673066,1753407055224,-460.0,0.00018608,2]
[374673067,1753407055236,-460.0,0.00018608,2]
[374673068,1753407055248,-460.0,0.00018608,2]
[374673069,1753407055259,-460.0,0.00018608,2]
[374673070,1753407055270,-460.0,0.00018608,2]
[374673071,1753407055281,-160.14115605,0.00018608,2]
[374673072,1753407055291,-460.0,0.00018608,2]
[374673073,1753407055303,-460.0,0.00018608,2]
[374673074,1753407055312,-460.0,0.00018608,2]
[374673075,1753407055322,-475.87,0.00018608,2]
[374673076,1753407055331,-3234.27,0.00018608,2]
[374673077,1753407055341,-460.0,0.00018608,2]
[374673078,1753407055351,-1177.25,0.00018608,2]
[374673079,1753407055362,-460.0,0.00018608,2]
[374673080,1753407055371,-644.54,0.00018608,2]
[374673081,1753407055382,-460.0,0.00018608,2]
[374673082,1753407055391,-460.0,0.00018608,2]
[374673083,1753407055401,-1861.89,0.00018608,2]
[374673084,1753407055419,-460.0,0.00018608,2]
[374673085,1753407055440,-460.0,0.00018608,2]
[374673086,1753407055451,-460.0,0.00018608,2]
[374673087,1753407055461,-460.0,0.00018608,2]
[374673088,1753407055473,-531.04,0.00018608,2]
[374673089,1753407055484,-460.0,0.00018608,2]
[374673090,1753407055494,-1379.8,0.00018608,2]
[374673091,1753407055504,-460.0,0.00018608,2]
[374673092,1753407055514,-484.59,0.00018608,2]
[374673093,1753407055524,-460.0,0.00018608,2]
[374673094,1753407055533,-502.37,0.00018608,2]
[374673095,1753407055544,-460.0,0.00018608,2]
[374673096,1753407055554,-3711.29,0.00018608,2]
[374673097,1753407055563,-497.41,0.00018608,2]
[374673098,1753407055574,-460.0,0.00018608,2]
[374673099,1753407055586,-999.31,0.00018608,2]
[374673100,1753407055595,-704.93,0.00018608,2]
[374673101,1753407055605,-1122.05,0.00018608,2]
[374673102,1753407055616,-460.0,0.00018608,2]
[374673103,1753407055627,-460.0,0.00018609,2]
[374673104,1753407055637,-460.0,0.00018609,2]
[374673105,1753407055648,-460.0,0.00018609,2]
[374673106,1753407055658,-460.0,0.00018609,2]
[374673107,1753407055668,-460.0,0.00018609,2]
[374673108,1753407055679,-460.0,0.00018609,2]
[374673109,1753407055691,-460.0,0.00018609,2]
[374673110,1753407055703,-496.71517265,0.00018609,2]
[374673111,1753407055714,-460.0,0.00018609,2]
[374673112,1753407055727,-460.0,0.00018609,2]
[374673113,1753407055737,-460.0,0.00018609,2]
[374673114,1753407055749,-460.0,0.00018609,2]
[374673115,1753407055760,-460.0,0.00018609,2]
[374673116,1753407055771,-460.0,0.00018609,2]
[374673117,1753407055782,-460.0,0.00018609,2]
[374673118,1753407055792,-460.0,0.00018609,2]
[374673119,1753407055803,-460.0,0.00018609,2]
[374673120,1753407055815,-727.25,0.00018609,2]
[374673121,1753407055824,-460.0,0.00018609,2]
[374673122,1753407055835,-541.65,0.00018609,2]
[374673123,1753407055845,-570.81,0.00018609,2]
[374673124,1753407055855,-460.0,0.00018609,2]
[374673125,1753407055866,-1298.5,0.00018609,2]
[374673126,1753407055876,-460.0,0.00018609,2]
[374673127,1753407055887,-460.0,0.00018609,2]
[374673128,1753407055898,-460.0,0.00018609,2]
[374673129,1753407055907,-460.0,0.00018609,2]
[374673130,1753407055918,-820.54,0.00018609,2]
[374673131,1753407055928,-460.0,0.00018609,2]
[374673132,1753407055938,-1807.12,0.00018609,2]
[374673133,1753407055949,-633.27,0.00018609,2]
[374673134,1753407055960,-2084.93,0.00018609,2]
[374673135,1753407055970,-585.06,0.00018609,2]
[374673136,1753407055980,-663.73,0.00018609,2]
[374673137,1753407055991,-1394.51,0.00018609,2]
[374673138,1753407056002,-848.06,0.00018609,2]
[374673139,1753407056013,-460.0,0.00018609,2]
[374673140,1753407056023,-3413.77,0.00018609,2]
[374673141,1753407056033,-676.03,0.00018609,2]
[374673142,1753407056042,-2083.27,0.00018609,2]
[374673143,1753407056052,-1153.82,0.00018609,2]
[374673144,1753407056061,-178.00895609,0.00018645,2]
[374673145,1753407056071,-460.0,0.00018663,2]
[374673146,1753407056080,-460.0,0.00018663,2]
[374673147,1753407056091,-460.0,0.00018663,2]
[374673148,1753407056100,-460.0,0.00018663,2]
[374673149,1753407056110,-460.0,0.00018663,2]
[374673150,1753407056120,-460.0,0.00018663,2]
[374673151,1753407056129,-460.0,0.00018663,2]
[374673152,1753407056138,-581.87,0.00018663,2]
[374673153,1753407056148,-532.78,0.00018663,2]
[374673154,1753407056158,-565.54,0.00018663,2]
[374673155,1753407056167,-460.0,0.00018663,2]
[374673156,1753407056177,-460.0,0.00018663,2]
[374673157,1753407056187,-652.74,0.00018663,2]
[374673158,1753407056197,-460.0,0.00018663,2]
[374673159,1753407056208,-460.0,0.00018663,2]
[374673160,1753407056219,-460.0,0.00018663,2]
[374673161,1753407056229,-460.0,0.00018663,2]
[374673162,1753407056240,-533.82,0.00018663,2]
[374673163,1753407056249,-742.53,0.00018663,2]
[374673164,1753407056259,-460.0,0.00018663,2]
[374673165,1753407056269,-460.0,0.00018663,2]
[374673166,1753407056279,-2316.34,0.00018663,2]
[374673167,1753407056289,-460.0,0.00018663,2]
[374673168,1753407056300,-460.0,0.00018663,2]
[374673169,1753407056310,-460.0,0.00018663,2]
[374673170,1753407056320,-460.0,0.00018663,2]
[374673171,1753407056330,-1451.46,0.00018663,2]
[374673172,1753407056342,-460.0,0.00018663,2]
[374673173,1753407056352,-658.65,0.00018663,2]
[374673174,1753407056363,-460.0,0.00018663,2]
[374673175,1753407056374,-603.54,0.00018663,2]
[374673176,1753407056383,-460.0,0.00018663,2]
[374673177,1753407056393,-460.0,0.00018663,2]
[374673178,1753407056403,-460.0,0.00018667,2]
[374673179,1753407056413,-563.39464806,0.00018667,2]
[374673180,1753407056424,-460.0,0.00018667,2]
[374673181,1753407056435,-334.24101923,0.00018667,2]
[374673182,1753407056444,-460.0,0.00018667,2]
[374673183,1753407056454,-987.73,0.00018667,2]
[374673184,1753407056464,-460.0,0.00018667,2]
[374673185,1753407056474,-460.0,0.00018667,2]
[374673186,1753407056484,-460.0,0.00018667,2]
[374673187,1753407056494,-460.0,0.00018667,2]
[374673188,1753407056507,-460.0,0.00018667,2]
[374673189,1753407056518,-460.0,0.00018667,2]
[374673190,1753407056528,-457.37897851,0.00018667,2]
[374673191,1753407056538,-460.0,0.00018667,2]
[374673192,1753407056548,-460.0,0.00018667,2]
[374673193,1753407056557,-820.59,0.00018667,2]
[374673194,1753407056567,-460.0,0.00018667,2]
[374673195,1753407056577,-460.0,0.00018667,2]
[374673196,1753407056587,-460.0,0.00018667,2]
[374673197,1753407056600,-460.0,0.00018667,2]
[374673198,1753407056610,-460.0,0.00018667,2]
[374673199,1753407056620,-460.0,0.00018667,2]
[374673200,1753407056630,-460.0,0.00018667,2]
[374673201,1753407056640,-460.0,0.00018667,2]
[374673202,1753407056650,-460.0,0.00018667,2]
[374673203,1753407056661,-460.0,0.00018667,2]
[374673204,1753407056671,-460.0,0.00018667,2]
[374673205,1753407056681,-460.0,0.00018667,2]
[374673206,1753407056691,-460.0,0.00018667,2]
[374673207,1753407056701,-460.0,0.00018667,2]
[374673208,1753407056711,-460.0,0.00018667,2]
[374673209,1753407056720,-460.0,0.00018667,2]
[374673210,1753407056730,-462.35587766,0.00018667,2]
[374673211,1753407056740,-460.0,0.00018667,2]
[374673212,1753407056750,-297.00262278,0.00018667,2]
[374673213,1753407056759,-460.0,0.00018667,2]
[374673214,1753407056769,-460.0,0.00018667,2]
[374673215,1753407056779,-463.81038808,0.00018667,2]
[374673216,1753407056788,-168.0,0.00018788,2]
[374673217,1753407056798,-168.0,0.000188,2]
[374673218,1753407056808,-460.0,0.0001881,2]
[374673219,1753407056817,-460.0,0.0001881,2]
[374673220,1753407056826,-460.0,0.0001881,2]
[374673221,1753407056836,-482.62687916,0.0001881,2]
[374673222,1753407056848,-460.0,0.0001881,2]
[374673223,1753407056857,-460.0,0.0001881,2]
[374673224,1753407056867,-560.76710814,0.00018812,2]
[374673225,1753407056877,-460.0,0.00018812,2]
[374673226,1753407056887,-460.0,0.00018812,2]
[374673227,1753407056902,-460.0,0.00018812,2]
[374673228,1753407056915,-430.49232355,0.00018812,2]
[374673229,1753407056925,-399.14575647,0.00018812,2]
[374673230,1753407056935,-385.76382827,0.00018812,2]
[374673231,1753407056944,-500.4,0.00018812,2]
[374673232,1753407056954,-460.0,0.00018812,2]
[374673233,1753407056963,-591.19,0.00018812,2]
[374673234,1753407056973,-460.0,0.00018812,2]
[374673235,1753407056984,-460.0,0.00018812,2]
[374673236,1753407056994,-460.0,0.00018812,2]
[374673237,1753407057004,-160.0,0.00018817,2]
[374673238,1753407057014,-460.0,0.00018879,2]
[374673239,1753407057023,-460.0,0.00018879,2]
[374673240,1753407057033,-460.0,0.00018879,2]
[374673241,1753407057043,-460.0,0.00018879,2]
[374673242,1753407057053,-460.0,0.00018879,2]
[374673243,1753407057063,-1258.25,0.00018879,2]
[374673244,1753407057073,-460.0,0.00018879,2]
[374673245,1753407057083,-460.0,0.00018879,2]
[374673246,1753407057095,-460.0,0.00018882,2]
[374673247,1753407057105,-460.0,0.00018882,2]
[374673248,1753407057115,-460.0,0.00018882,2]
[374673249,1753407057124,-460.0,0.00018882,2]
[374673250,1753407057137,-460.0,0.00018882,2]
[374673251,1753407057147,-460.0,0.00018882,2]
[374673252,1753407057157,-460.0,0.00018882,2]
[374673253,1753407057167,-460.0,0.00018882,2]
[374673254,1753407057179,-460.0,0.00018882,2]
[374673255,1753407057190,-460.0,0.00018882,2]
[374673256,1753407057201,-475.87,0.00018882,2]
[374673257,1753407057210,-3234.27,0.00018882,2]
[374673258,1753407057220,-460.0,0.00018882,2]
[374673259,1753407057230,-1177.25,0.00018882,2]
[374673260,1753407057240,-460.0,0.00018882,2]
[374673261,1753407057250,-644.54,0.00018882,2]
[374673262,1753407057260,-460.0,0.00018882,2]
[374673263,1753407057270,-460.0,0.00018882,2]
[374673264,1753407057280,-1861.89,0.00018882,2]
[374673265,1753407057290,-460.0,0.00018882,2]
[374673266,1753407057300,-460.0,0.00018882,2]
[374673267,1753407057310,-460.0,0.00018882,2]
[374673268,1753407057320,-460.0,0.00018882,2]
[374673269,1753407057330,-531.04,0.00018882,2]
[374673270,1753407057340,-460.0,0.00018882,2]
[374673271,1753407057350,-1379.8,0.00018882,2]
[374673272,1753407057360,-460.0,0.00018882,2]
[374673273,1753407057370,-484.59,0.00018882,2]
[374673274,1753407057380,-460.0,0.00018882,2]
[374673275,1753407057390,-502.37,0.00018882,2]
[374673276,1753407057400,-460.0,0.00018882,2]
[374673277,1753407057410,-3711.29,0.00018882,2]
[374673278,1753407057420,-497.41,0.00018882,2]
[374673279,1753407057433,-460.0,0.00018882,2]
[374673280,1753407057443,-999.31,0.00018882,2]
[374673281,1753407057453,-704.93,0.00018882,2]
[374673282,1753407057462,-1122.05,0.00018882,2]
[374673283,1753407057473,-460.0,0.00018882,2]
[374673284,1753407057483,-421.35746263,0.00018883,2]
[374673285,1753407057494,-460.0,0.00018883,2]
[374673286,1753407057505,-437.46997992,0.00018883,2]
[374673287,1753407057516,-460.0,0.00018883,2]
[374673288,1753407057526,-460.0,0.00018883,2]
[374673289,1753407057535,-460.0,0.00018883,2]
[374673290,1753407057546,-460.0,0.00018883,2]
[374673291,1753407057556,-460.0,0.00018883,2]
[374673292,1753407057566,-460.0,0.00018883,2]
[374673293,1753407057577,-460.0,0.00018883,2]
[374673294,1753407057700,-460.0,0.00018883,2]
[374673295,1753407057725,-460.0,0.00018883,2]
[374673296,1753407057735,-460.0,0.00018883,2]
[374673297,1753407057745,-727.25,0.00018883,2]
[374673298,1753407057757,-460.0,0.00018883,2]
[374673299,1753407057768,-541.65,0.00018883,2]
[374673300,1753407057780,-570.81,0.00018883,2]
[374673301,1753407057790,-1298.5,0.00018883,2]
[374673302,1753407057801,-460.0,0.00018883,2]
[374673303,1753407057812,-460.0,0.00018883,2]
[374673304,1753407057822,-460.0,0.00018883,2]
[374673305,1753407057831,-460.0,0.00018883,2]
[374673306,1753407057842,-820.54,0.00018883,2]
[374673307,1753407057852,-460.0,0.00018883,2]
[374673308,1753407057861,-1432.96641668,0.00018883,2]
[374673309,1753407175998,153.72890235,0.00017409,2]
[374673310,1753407285506,230.5434143,0.00016512,2]
[374673311,1753407321085,231.18620503,0.000222,69]
[374673313,1753407547095,153.56563956,0.00017405,2]
[374673314,1753407597785,1593.31696277,0.00026159,120]
[374673316,1753407626012,198.192702,0.00013699,2]
[374673317,1753407706902,159.400056,0.00016508,2]
[374673318,1753407730602,9258.29818814,0.00016506,2]
[374673319,1753407730629,10000.0,0.00016506,2]
[374673320,1753407730654,5641.70181186,0.00016506,2]
[374673327,1753407958358,1580.0,0.00026172,120]
[374673328,1753407999815,153.56563954,0.00017405,2]
[374673330,1753408038142,-178.94778265,0.00017504,2]
[374673331,1753408038169,-59.02546694,0.00017504,2]
[374673332,1753408126096,3146.089391,0.00026182,120]
[374673333,1753408152101,-265.65742532,0.00017503,2]
[374673334,1753408153147,-333.75261399,0.00017503,2]
[374673335,1753408153170,-309.90463084,0.00017503,2]
[374673336,1753408153193,-500.0,0.00017503,2]
[374673337,1753408153215,-300.0,0.00017503,2]
[374673338,1753408153236,-460.0,0.00017503,2]
[374673339,1753408153260,-300.0,0.00017504,2]
[374673340,1753408153281,-300.0,0.00017504,2]
[374673341,1753408153301,-300.0,0.00017504,2]
[374673342,1753408153322,-397.21258965,0.00017504,2]
[374673379,1753408232007,-462.55810979,0.00017503,2]
[374673382,1753408232018,-460.0,0.00017503,2]
[374673383,1753408232028,-461.41550793,0.00017503,2]
[374673386,1753408232040,-300.0,0.00017503,2]
[374673388,1753408232050,-55.57711561,0.00017503,2]
[374673524,1753408237724,-244.42288439,0.00017503,2]
[374673525,1753408237734,-300.0,0.00017503,2]
[374673526,1753408237744,-1200.0,0.00017503,2]
[374673527,1753408237754,-460.0,0.00017503,2]
[374673528,1753408237766,-460.0,0.00017503,2]
[374673529,1753408237778,-460.0,0.00017503,2]
[374673530,1753408237787,-593.06544846,0.00017503,2]
[374673531,1753408237797,-1200.0,0.00017504,2]
[374673532,1753408237807,-460.0,0.00017504,2]
[374673533,1753408237816,-462.63375074,0.00017504,2]
[374673534,1753408237825,-460.0,0.00017504,2]
[374673535,1753408237834,-443.65150739,0.00017504,2]
[374673536,1753408237845,-463.18872335,0.00017504,2]
[374673537,1753408237855,-461.93116379,0.00017504,2]
[374673538,1753408237864,-464.67564319,0.00017504,2]
[374673539,1753408237874,-460.0,0.00017504,2]
[374673540,1753408237883,-460.0,0.00017504,2]
[374673541,1753408237893,-508.81,0.00017504,2]
[374673542,1753408237902,-563.78,0.00017504,2]
[374673543,1753408237913,-460.0,0.00017504,2]
[374673544,1753408237922,-496.45,0.00017504,2]
[374673545,1753408237932,-50000.0,0.00017504,2]
[374673546,1753408237941,-466.00322953,0.00017505,2]
[374673547,1753408237951,-461.65193546,0.00017505,2]
[374673548,1753408237960,-463.30812545,0.00017505,2]
[374673549,1753408237970,-460.80963173,0.00017505,2]